bitfinex-derivatives/quotes_BTCF0:USTF0_20251103
["timestamp","ask_amount","ask_price","bid_price","bid_amount"]
[1762190516966,0.36277878,107600.0,107590.0,0.86205775]
[1762190517164,0.3608,107620.0,107590.0,0.4537677]
[1762190517364,1.04936,107610.0,107600.0,0.23631989]
[1762190517571,0.32608,107590.0,107580.0,0.5364849]
[1762190517869,0.32608,107610.0,107590.0,0.0929635]
[1762190518067,1.1424705,107610.0,107600.0,0.07965857]
[1762190518263,1.1424705,107610.0,107590.0,0.53342207]
[1762190518264,0.15355,107600.0,107590.0,0.53342207]
[1762190518569,0.32608,107600.0,107590.0,0.4537635]
[1762190518771,0.4190392,107600.0,107590.0,0.07983193]
[1762190518959,0.7798392,107600.0,107590.0,0.07983193]
[1762190520269,0.4190478,107590.0,107580.0,0.00306734]
[1762190520468,0.4190478,107590.0,107580.0,0.11398942]
[1762190520469,1.1427678,107590.0,107580.0,0.11398942]
[1762190520870,0.51441001,107610.0,107590.0,0.17551]
[1762190521064,0.3626,107600.0,107590.0,0.50219176]
[1762190521265,0.3626,107600.0,107590.0,0.4220278]
[1762190521572,0.23710187,107600.0,107590.0,0.4220278]
[1762190521770,0.65614107,107600.0,107590.0,0.0929678]
[1762190521960,0.4190478,107590.0,107580.0,0.00306734]
[1762190522164,0.7798478,107590.0,107580.0,0.00306734]
[1762190522364,0.0929937,107560.0,107550.0,0.21406265]
[1762190522560,0.36454001,107560.0,107550.0,0.67366265]
[1762190522782,6.001e-05,107560.0,107550.0,1.2424624]
[1762190522977,0.31432884,107570.0,107560.0,0.0929937]
[1762190523269,0.4537628,107600.0,107580.0,0.092973]
[1762190523475,0.4574428,107600.0,107590.0,0.08078639]
[1762190523663,0.4574428,107600.0,107580.0,0.5525714]
[1762190523664,0.8182428,107600.0,107580.0,0.5525714]
[1762190523871,0.8182438,107600.0,107580.0,0.45842235]
[1762190524063,0.0929678,107590.0,107580.0,0.21190095]
[1762190524267,0.0929678,107590.0,107580.0,0.11310095]
[1762190524465,0.4537678,107590.0,107580.0,0.11310095]
[1762190524663,0.0929851,107570.0,107560.0,0.3608]
[1762190524862,0.0929937,107560.0,107550.0,0.4596]
[1762190525079,0.0930024,107550.0,107540.0,0.36395483]
[1762190525369,0.4537892,107570.0,107550.0,0.0930015]
[1762190525573,0.4570212,107580.0,107560.0,0.89610745]
[1762190525770,0.4537851,107570.0,107560.0,0.11325375]
[1762190526269,0.96907955,107570.0,107560.0,0.11325375]
[1762190526479,0.6861851,107570.0,107560.0,0.11325375]
[1762190526973,0.6861851,107570.0,107560.0,3.75e-06]
[1762190527276,0.23244,107560.0,107510.0,0.57486265]
[1762190527479,0.3608,107540.0,107510.0,0.57486265]
[1762190527680,0.36456,107530.0,107510.0,0.4538332]
[1762190527974,0.36456,107530.0,107510.0,0.4538363]
[1762190528375,8.635e-05,107520.0,107510.0,0.4538363]
[1762190528569,8.635e-05,107520.0,107510.0,0.6073863]
[1762190528770,8.635e-05,107520.0,107510.0,0.44177745]
[1762190529172,8.635e-05,107520.0,107510.0,0.17401445]
[1762190529379,8.635e-05,107520.0,107510.0,0.86387445]
[1762190529771,8.635e-05,107520.0,107510.0,0.77083745]
[1762190529971,0.09311475,107520.0,107510.0,0.3608]
[1762190530172,0.0930377,107510.0,107500.0,0.36386962]
[1762190530374,0.09311705,107520.0,107510.0,0.0930344]
[1762190530577,0.3638,107520.0,107500.0,0.53788457]
[1762190530877,0.3638,107520.0,107500.0,0.53788787]
[1762190531068,0.7246,107520.0,107510.0,0.16230445]
[1762190531377,0.59902174,107520.0,107510.0,0.16230445]
[1762190531767,0.59902174,107520.0,107500.0,0.00306962]
[1762190531972,0.59902174,107520.0,107500.0,0.09611202]
[1762190532172,0.59902174,107520.0,107510.0,0.08097745]
[1762190532381,0.59902174,107520.0,107500.0,0.00306962]
[1762190532680,0.3608,107510.0,107500.0,0.00306962]
[1762190532881,0.3608,107510.0,107500.0,0.09611292]
[1762190533178,0.3608,107510.0,107500.0,0.08404707]
[1762190533679,0.4538342,107510.0,107500.0,0.00306962]
[1762190533874,0.4538354,107510.0,107500.0,0.09611362]
[1762190534077,0.33125244,107520.0,107500.0,0.53789107]
[1762190534276,0.3608,107530.0,107510.0,0.32756235]
[1762190534476,0.36276,107520.0,107510.0,0.4079849]
[1762190534676,0.0930356,107510.0,107500.0,0.46820962]
[1762190534871,0.0930356,107510.0,107500.0,0.00306962]
[1762190534872,0.6863556,107510.0,107500.0,0.00306962]
[1762190535073,0.23252,107510.0,107500.0,0.36386962]
[1762190535278,0.23252,107510.0,107500.0,0.44484707]
[1762190535279,0.4559156,107510.0,107500.0,0.44484707]
[1762190535683,0.4559156,107510.0,107500.0,0.46820962]
[1762190536081,0.36288,107510.0,107500.0,0.96672107]
[1762190536387,0.3608,107530.0,107500.0,0.54918707]
[1762190536581,0.36272,107520.0,107510.0,0.08097745]
[1762190536783,0.36272,107520.0,107500.0,0.56125342]
[1762190536983,0.36272,107520.0,107500.0,0.46820962]
[1762190537178,0.72352,107520.0,107500.0,0.46820962]
[1762190537378,0.72756,107520.0,107500.0,0.36386962]
[1762190537573,0.3608,107510.0,107500.0,0.00306962]
[1762190537790,0.72756,107520.0,107500.0,0.00306962]
[1762190538185,0.4538357,107510.0,107500.0,0.00306962]
[1762190538390,0.58375172,107510.0,107500.0,0.00306962]
[1762190538782,0.81631172,107510.0,107500.0,0.00306962]
[1762190539882,0.0930613,107480.0,107470.0,0.36089329]
[1762190540184,0.4549769,107490.0,107470.0,0.65389931]
[1762190540379,0.36192,107490.0,107480.0,0.5582013]
[1762190540583,0.0930527,107490.0,107480.0,0.85120732]
[1762190540786,0.0930527,107490.0,107480.0,0.70920745]
[1762190540982,0.0930527,107490.0,107480.0,0.46514]
[1762190541182,0.0930527,107490.0,107480.0,0.3608]
[1762190541387,0.0930527,107490.0,107480.0,0.46514]
[1762190541586,0.0930527,107490.0,107480.0,0.5582013]
[1762190541787,0.0930527,107490.0,107480.0,0.7212913]
[1762190541788,0.0930526,107490.0,107480.0,0.7212913]
[1762190541992,0.0930526,107490.0,107480.0,0.80226875]
[1762190542488,0.72236,107500.0,107480.0,0.80226875]
[1762190542686,0.4546077,107500.0,107490.0,0.3608]
[1762190542888,0.4546077,107500.0,107480.0,0.46514]
[1762190543094,0.0930527,107490.0,107480.0,0.78963]
[1762190543289,0.22296872,107490.0,107480.0,0.10434]
[1762190543497,0.0930527,107490.0,107480.0,0.46514]
[1762190544195,0.0930527,107490.0,107480.0,0.7212913]
[1762190544392,0.0930527,107490.0,107480.0,0.78963]
[1762190544698,0.0930613,107480.0,107470.0,9.329e-05]
[1762190544898,0.94457732,107480.0,107470.0,9.329e-05]
[1762190545099,0.8146613,107480.0,107470.0,9.329e-05]
[1762190545293,0.94457732,107480.0,107470.0,9.329e-05]
[1762190546601,0.8146613,107480.0,107470.0,9.329e-05]
[1762190546901,0.4538613,107480.0,107470.0,0.36089329]
[1762190547297,0.4534213,107480.0,107470.0,0.68410329]
[1762190547693,0.4531813,107480.0,107470.0,0.68410329]
[1762190547999,0.4530613,107480.0,107470.0,0.68410329]
[1762190548206,0.4529413,107480.0,107470.0,0.68410329]
[1762190548598,0.4529413,107480.0,107470.0,0.32330329]
[1762190548799,0.4528613,107480.0,107470.0,0.32330329]
[1762190548999,0.0930613,107480.0,107470.0,0.32330329]
[1762190549203,0.4538604,107490.0,107480.0,0.41945]
[1762190549499,0.0930614,107480.0,107470.0,9.329e-05]
[1762190549706,0.0930614,107480.0,107470.0,0.36089329]
[1762190549899,0.0930614,107480.0,107470.0,0.51978329]
[1762190550701,0.0930614,107480.0,107470.0,0.67990329]
[1762190551803,0.0930614,107480.0,107470.0,0.77297329]
[1762190552107,0.0930581,107490.0,107480.0,0.5125113]
[1762190552313,0.0930581,107490.0,107480.0,0.86122745]
[1762190552601,0.8128452,107500.0,107480.0,0.95428875]
[1762190552602,0.8128096,107500.0,107480.0,0.95428875]
[1762190552905,0.0930496,107500.0,107490.0,0.76078745]
[1762190554002,0.0930496,107500.0,107490.0,0.85384015]
[1762190554500,0.0930496,107500.0,107490.0,0.67981]
[1762190554807,0.0930527,107490.0,107480.0,0.50042745]
[1762190555008,0.22296872,107490.0,107480.0,0.41945]
[1762190555304,0.22296872,107490.0,107480.0,0.50042745]
[1762190555305,0.0930527,107490.0,107480.0,0.50042745]
[1762190555501,0.0930527,107490.0,107480.0,0.95428915]
[1762190555698,0.00404,107520.0,107510.0,0.4120457]
[1762190556009,0.0959838,107570.0,107560.0,0.41945]
[1762190556208,0.12094758,107570.0,107560.0,0.99114347]
[1762190556510,0.13291602,107570.0,107540.0,0.47035535]
[1762190556716,0.53647682,107550.0,107540.0,0.3608]
[1762190557003,0.4065608,107550.0,107540.0,0.3608]
[1762190557207,0.31356,107550.0,107540.0,0.96877763]
[1762190557408,0.2495808,107550.0,107540.0,0.87576823]
[1762190557609,0.4065608,107550.0,107540.0,0.87576823]
[1762190559004,0.53647682,107550.0,107540.0,0.79479078]
[1762190559205,0.56196337,107550.0,107540.0,0.37534078]
[1762190559508,0.56196337,107550.0,107540.0,0.01454078]
[1762190559706,0.43204735,107550.0,107540.0,0.37534078]
[1762190560010,0.79140735,107550.0,107540.0,0.37534078]
[1762190560206,0.81619996,107550.0,107540.0,0.79479078]
[1762190560413,0.45683996,107550.0,107540.0,0.88780018]
[1762190560710,0.02548655,107550.0,107540.0,0.96877763]
[1762190561512,0.02479261,107550.0,107540.0,1.09869365]
[1762190561711,0.02479261,107550.0,107540.0,0.96877763]
[1762190562407,0.43135381,107550.0,107540.0,0.78025]
[1762190562710,0.64889813,107550.0,107540.0,0.3608]
[1762190562907,0.4065695,107540.0,107530.0,0.67981]
[1762190563114,0.65743867,107540.0,107530.0,0.67981]
[1762190563417,0.45612966,107540.0,107530.0,0.51969]
[1762190563708,0.29914966,107540.0,107530.0,0.76078745]
[1762190563905,0.45612966,107540.0,107530.0,0.76078745]
[1762190564503,0.04956016,107540.0,107530.0,0.76078745]
[1762190564704,0.1263225,107540.0,107530.0,1.07134987]
[1762190564910,0.033313,107540.0,107530.0,0.97833177]
[1762190565215,0.45866776,107540.0,107530.0,0.76078745]
[1762190566203,0.4091171,107530.0,107520.0,0.46124]
[1762190566403,0.67662255,107530.0,107520.0,0.3608]
[1762190566604,0.81763823,107530.0,107520.0,0.76015]
[1762190566808,0.50153823,107530.0,107520.0,0.84112745]
[1762190567309,0.14297823,107530.0,107520.0,0.84112745]
[1762190567505,0.0930171,107530.0,107520.0,0.84112745]
[1762190567714,0.14297368,107530.0,107520.0,0.84112745]
[1762190568215,0.0930171,107530.0,107520.0,0.84112745]
[1762190568606,0.4091171,107530.0,107520.0,0.84112745]
[1762190569008,0.47450137,107530.0,107520.0,0.84112745]
[1762190569505,0.06661294,107530.0,107520.0,0.84112745]
[1762190569713,0.15962934,107530.0,107520.0,0.84112745]
[1762190570016,0.47572934,107530.0,107520.0,0.84112745]
[1762190570414,0.4091164,107530.0,107520.0,0.84112745]
[1762190570813,0.47572934,107530.0,107520.0,0.84112745]
[1762190571513,0.4091164,107530.0,107520.0,0.84112745]
[1762190571722,0.2598564,107530.0,107520.0,0.84112745]
[1762190573012,0.32647609,107530.0,107520.0,0.84112745]
[1762190573413,0.5068903,107530.0,107520.0,0.44177745]
[1762190573615,0.72443462,107530.0,107520.0,0.3608]
[1762190574608,0.44027061,107530.0,107520.0,0.76015]
[1762190576012,0.4091249,107520.0,107510.0,0.52003]
[1762190576318,0.4091336,107510.0,107500.0,0.77184]
[1762190576628,0.44979518,107510.0,107500.0,0.77184]
[1762190576918,0.44028781,107510.0,107500.0,0.85281745]
[1762190577421,0.94040892,107510.0,107500.0,0.77184]
[1762190577628,0.4903046,107510.0,107500.0,0.76015]
[1762190577920,0.4903046,107510.0,107500.0,0.3608]
[1762190578317,0.4903156,107510.0,107500.0,0.3608]
[1762190578618,0.54101992,107510.0,107490.0,0.3608]
[1762190578819,0.4091594,107480.0,107470.0,9e-08]
[1762190579024,1.81893478,107480.0,107470.0,9e-08]
[1762190579219,1.78557604,107480.0,107470.0,9e-08]
[1762190579419,1.76889609,107480.0,107470.0,9e-08]
[1762190580126,1.76896783,107480.0,107470.0,9e-08]
[1762190580312,1.81900594,107480.0,107470.0,9e-08]
[1762190580513,1.81900594,107480.0,107470.0,0.31060009]
[1762190580826,0.15765093,107480.0,107470.0,0.75237754]
[1762190581021,0.05624779,107480.0,107470.0,0.84544574]
[1762190581228,0.05115239,107480.0,107470.0,0.84544574]
[1762190581429,0.02502184,107490.0,107480.0,0.4924106]
[1762190581624,0.02502184,107490.0,107480.0,1.05867177]
[1762190581818,0.05838742,107500.0,107490.0,0.3106]
[1762190582020,0.05838742,107500.0,107490.0,0.75237745]
[1762190582213,0.03336558,107500.0,107490.0,0.85492704]
[1762190582517,0.02502876,107500.0,107490.0,0.75237745]
[1762190583520,0.70192876,107500.0,107490.0,0.3106]
[1762190583722,0.70192876,107500.0,107490.0,0.39157745]
[1762190583920,0.16684,107490.0,107480.0,0.48032745]
[1762190584227,1.16606432,107490.0,107470.0,9e-08]
[1762190584424,0.69715395,107480.0,107470.0,9e-08]
[1762190584623,1.41340689,107480.0,107470.0,9e-08]
[1762190584926,1.64015257,107480.0,107460.0,0.00307077]
[1762190585116,1.64015257,107480.0,107430.0,0.3608]
[1762190585117,0.3161,107450.0,107430.0,0.3608]
[1762190585325,0.16684,107430.0,107420.0,0.09182191]
[1762190585523,0.16684,107430.0,107420.0,0.25105191]
[1762190585723,0.53364432,107430.0,107420.0,0.33202936]
[1762190586122,0.53364432,107430.0,107420.0,0.48339936]
[1762190586521,0.89444432,107430.0,107420.0,0.48339936]
[1762190586725,0.7700032,107430.0,107420.0,0.48339936]
[1762190587128,0.98754752,107430.0,107420.0,0.08404936]
[1762190587328,1.1251632,107430.0,107420.0,0.08404936]
[1762190588138,1.34270752,107430.0,107420.0,0.08404936]
[1762190588332,1.1251632,107430.0,107420.0,0.08404936]
[1762190589039,1.1501934,107430.0,107420.0,0.08404936]
[1762190589223,1.1251632,107430.0,107420.0,0.08404936]
[1762190589633,1.34270752,107430.0,107420.0,0.08404936]
[1762190590529,1.34270752,107430.0,107420.0,0.00307191]
[1762190591037,0.0931203,107410.0,107400.0,0.39935]
[1762190591237,0.7700203,107410.0,107400.0,0.48032745]
[1762190591534,0.98756462,107410.0,107400.0,0.48032745]
[1762190591732,1.34152462,107410.0,107400.0,0.24020745]
[1762190592035,1.1239803,107410.0,107400.0,0.24020745]
[1762190593530,0.6139203,107410.0,107400.0,0.84112745]
[1762190593729,0.6137147,107420.0,107410.0,0.15923]
[1762190593931,0.7629747,107420.0,107410.0,0.08120745]
[1762190594132,0.7700147,107420.0,107410.0,0.00023]
[1762190594325,1.15168256,107420.0,107410.0,0.08120745]
[1762190594532,1.15168256,107420.0,107410.0,0.00023]
[1762190594733,1.15168256,107420.0,107410.0,0.08120745]
[1762190594939,1.15140256,107420.0,107410.0,0.00023]
[1762190595138,0.79828256,107420.0,107410.0,0.1516]
[1762190595335,0.02826786,107420.0,107410.0,0.23257745]
[1762190595535,0.02826786,107420.0,107410.0,0.59337745]
[1762190595738,0.0931027,107430.0,107420.0,0.23621]
[1762190595935,0.27472413,107430.0,107420.0,0.69183745]
[1762190596243,0.09312,107410.0,107400.0,0.39378]
[1762190596738,0.09312,107410.0,107400.0,0.83555745]
[1762190597127,0.2465,107410.0,107400.0,0.47475745]
[1762190597833,0.2465,107410.0,107400.0,0.83555745]
[1762190598034,0.6072962,107420.0,107410.0,0.30503]
[1762190598234,0.18156907,107420.0,107410.0,0.66583]
[1762190598533,0.27468087,107420.0,107410.0,0.74680745]
[1762190599246,0.99571519,107420.0,107410.0,0.08097745]
[1762190599634,0.99571519,107420.0,107410.0,0.74680745]
[1762190599635,0.12130087,107420.0,107410.0,0.74680745]
[1762190599941,0.12130087,107420.0,107410.0,0.38600745]
[1762190600142,0.27468087,107420.0,107410.0,0.38600745]
[1762190600342,0.27468087,107420.0,107410.0,0.08097745]
[1762190600343,0.99571519,107420.0,107410.0,0.08097745]
[1762190600639,0.3891988,107400.0,107390.0,0.30503]
[1762190600944,0.60674312,107400.0,107390.0,0.15944]
[1762190601139,0.60674312,107400.0,107390.0,0.24041745]
[1762190601436,0.3892078,107390.0,107380.0,0.75765305]
[1762190601638,0.0931333,107400.0,107390.0,0.38600745]
[1762190601840,0.2465075,107410.0,107400.0,0.39565]
[1762190602037,0.41801359,107410.0,107400.0,0.83742745]
[1762190602238,0.77881359,107410.0,107400.0,0.38600745]
[1762190602736,0.3891986,107400.0,107390.0,0.74680745]
[1762190603935,0.3892076,107390.0,107380.0,0.75765305]
[1762190604145,0.3892076,107390.0,107380.0,0.8386305]
[1762190604445,0.4451634,107410.0,107400.0,0.39565]
[1762190604640,0.47400755,107410.0,107400.0,0.75645]
[1762190604837,1.13087755,107410.0,107400.0,0.47662745]
[1762190605441,0.0931373,107390.0,107380.0,0.00307305]
[1762190605646,0.0931373,107390.0,107380.0,0.8405005]
[1762190605647,0.41792324,107390.0,107380.0,0.8405005]
[1762190605940,0.3892073,107390.0,107380.0,0.8405005]
[1762190606746,0.3892073,107390.0,107380.0,0.4797005]
[1762190606940,0.99628092,107390.0,107380.0,0.0840505]
[1762190607142,0.96755162,107390.0,107380.0,0.0840505]
[1762190607444,0.77875168,107390.0,107380.0,0.2434905]
[1762190607742,0.77875168,107390.0,107380.0,0.4733605]
[1762190607944,1.13047168,107390.0,107380.0,0.3884505]
[1762190608145,1.348016,107390.0,107380.0,0.3884505]
[1762190608836,0.996296,107390.0,107380.0,0.3884505]
[1762190609036,1.347976,107390.0,107380.0,0.3884505]
[1762190609240,1.347976,107390.0,107380.0,0.2434905]
[1762190609437,1.13043168,107390.0,107380.0,0.3884505]
[1762190609644,1.347976,107390.0,107380.0,0.3884505]
[1762190609845,1.13043168,107390.0,107380.0,0.3884505]
[1762190610040,1.13011168,107390.0,107380.0,0.4733605]
[1762190610246,1.13011168,107390.0,107380.0,0.3884505]
[1762190610545,1.13011168,107390.0,107380.0,0.2434905]
[1762190610746,1.347656,107390.0,107380.0,0.00307305]
[1762190611042,0.235276,107380.0,107370.0,6.618e-05]
[1762190611248,0.9795947,107380.0,107370.0,0.08104363]
[1762190611447,0.9795947,107380.0,107370.0,0.22878363]
[1762190611647,0.9795947,107380.0,107370.0,0.37374363]
[1762190611847,1.0520447,107380.0,107370.0,6.618e-05]
[1762190612037,0.2352934,107360.0,107350.0,0.3608]
[1762190612245,0.3725234,107360.0,107350.0,0.73447745]
[1762190612738,0.27936,107350.0,107340.0,0.0030742]
[1762190613046,0.27943643,107350.0,107340.0,0.6565742]
[1762190613342,0.27943643,107350.0,107340.0,0.2957742]
[1762190613548,0.88656757,107350.0,107340.0,0.0030742]
[1762190613945,0.66902325,107350.0,107340.0,0.0030742]
[1762190614146,1.23708757,107350.0,107340.0,0.0030742]
[1762190614547,0.27936,107320.0,107310.0,0.6535]
[1762190614852,0.27944773,107320.0,107310.0,0.6535]
[1762190615036,1.77944773,107320.0,107310.0,0.6535]
[1762190615244,0.27936,107310.0,107300.0,0.36398316]
[1762190615550,0.2642099,107310.0,107300.0,0.36398316]
[1762190615743,0.2642099,107310.0,107300.0,0.74159316]
[1762190616347,1.86088773,107320.0,107310.0,0.2927]
[1762190616650,1.50008773,107320.0,107310.0,0.6535]
[1762190616943,8.773e-05,107320.0,107310.0,0.6535]
[1762190617347,8.773e-05,107320.0,107310.0,0.7467066]
[1762190617647,1.5,107330.0,107320.0,0.470808]
[1762190617844,0.8131702,107360.0,107320.0,0.831608]
[1762190618048,0.64016,107350.0,107340.0,0.2927]
[1762190618246,0.88594365,107350.0,107330.0,0.3608]
[1762190618447,1.5,107340.0,107330.0,0.6535]
[1762190618846,1.52825482,107340.0,107330.0,0.6535]
[1762190619349,1.5,107340.0,107330.0,0.6535]
[1762190619652,0.3725307,107360.0,107350.0,0.2927]
[1762190619950,0.40078404,107360.0,107350.0,0.2927]
[1762190620150,0.3725406,107340.0,107330.0,0.50854]
[1762190620354,0.3725406,107340.0,107330.0,0.6535]
[1762190620845,0.0931806,107340.0,107330.0,0.6535]
[1762190621040,0.0931775,107350.0,107340.0,0.37761]
[1762190621246,1.1083448,107370.0,107360.0,0.14774]
[1762190621448,1.13647376,107370.0,107360.0,0.14774]
[1762190621644,1.13647376,107370.0,107340.0,0.73841]
[1762190621645,0.372532,107350.0,107340.0,0.73841]
[1762190621849,0.372532,107350.0,107340.0,0.6535]
[1762190622244,0.372532,107350.0,107330.0,0.6535]
[1762190622245,0.3725406,107340.0,107330.0,0.6535]
[1762190623449,0.67751492,107340.0,107330.0,0.3608]
[1762190624064,0.67751492,107340.0,107320.0,0.2927]
[1762190624065,0.3725493,107330.0,107320.0,0.2927]
[1762190624351,0.3725493,107330.0,107320.0,0.36998]
[1762190624551,0.2399756,107340.0,107330.0,0.27529]
[1762190624746,0.41074712,107340.0,107330.0,0.27529]
[1762190624948,0.382628,107320.0,107310.0,0.63609]
[1762190625156,0.460408,107320.0,107310.0,0.63609]
[1762190625349,1.960408,107320.0,107310.0,0.63609]
[1762190625546,1.960408,107320.0,107310.0,0.27529]
[1762190625751,1.5,107320.0,107310.0,0.63609]
[1762190625954,1.5,107320.0,107310.0,0.7292969]
[1762190626156,0.809916,107340.0,107330.0,0.27529]
[1762190626351,0.48852488,107340.0,107330.0,0.27529]
[1762190626748,0.84069598,107350.0,107340.0,0.13617]
[1762190626749,0.0931752,107350.0,107340.0,0.13617]
[1762190626957,0.0931752,107350.0,107340.0,0.71337]
[1762190627151,0.3826052,107350.0,107340.0,0.35257]
[1762190627346,0.2399706,107340.0,107330.0,0.3608]
[1762190627648,0.4603906,107340.0,107330.0,0.13617]
[1762190627849,0.4603906,107340.0,107330.0,0.49697]
[1762190628056,0.0931807,107340.0,107330.0,0.63609]
[1762190628357,0.87374368,107350.0,107340.0,0.27529]
[1762190628557,0.41047513,107350.0,107340.0,0.63609]
[1762190628952,0.31729743,107350.0,107340.0,0.71337]
[1762190629148,0.239962,107350.0,107340.0,0.71337]
[1762190629348,0.1746549,107350.0,107340.0,0.71337]
[1762190629547,0.4104669,107350.0,107340.0,0.71337]
[1762190630454,0.382602,107350.0,107340.0,0.71337]
[1762190630660,0.382602,107350.0,107340.0,0.63609]
[1762190631252,0.41000059,107350.0,107340.0,0.63609]
[1762190631654,0.093172,107350.0,107340.0,0.71337]
[1762190632860,0.239962,107350.0,107340.0,0.71337]
[1762190633051,0.093172,107350.0,107340.0,0.71337]
[1762190633249,0.2399591,107360.0,107350.0,0.13617]
[1762190633454,0.26705889,107360.0,107350.0,0.63609]
[1762190633755,0.12026889,107360.0,107350.0,0.63609]
[1762190634164,0.40969889,107360.0,107350.0,0.63609]
[1762190634461,0.3826019,107350.0,107340.0,0.63609]
[1762190634661,0.54003767,107350.0,107340.0,0.63609]
[1762190635860,0.3826108,107340.0,107330.0,0.63609]
[1762190636060,0.51294678,107340.0,107330.0,0.63609]
[1762190636457,1.5,107360.0,107350.0,0.27529]
[1762190636657,0.02709812,107360.0,107350.0,0.729262]
[1762190636953,0.12026142,107360.0,107350.0,0.63609]
[1762190637158,0.3973874,107360.0,107350.0,0.27529]
[1762190637358,0.26705142,107360.0,107350.0,0.63609]
[1762190638254,1.72349628,107370.0,107360.0,0.27529]
[1762190638458,1.74998655,107370.0,107360.0,0.63609]
[1762190638665,2.09850655,107370.0,107360.0,0.63609]
[1762190639659,2.09850655,107370.0,107360.0,0.27529]
[1762190640063,2.09850655,107370.0,107360.0,0.63609]
[1762190641263,2.09850655,107370.0,107340.0,0.3608]
[1762190641264,0.14679,107350.0,107340.0,0.3608]
[1762190641464,0.2399705,107340.0,107330.0,0.3608]
[1762190641769,0.7434105,107340.0,107330.0,0.27529]
[1762190641962,0.3826193,107330.0,107320.0,0.35257]
[1762190642661,0.7434193,107330.0,107320.0,0.35257]
[1762190643462,0.382628,107320.0,107310.0,0.27529]
[1762190643762,0.50759,107320.0,107310.0,0.62385]
[1762190643967,0.8025493,107330.0,107320.0,0.35257]
[1762190644263,0.7434193,107330.0,107320.0,0.27529]
[1762190644454,0.3608,107350.0,107320.0,0.4457679]
[1762190644660,0.4539688,107360.0,107350.0,0.27529]
[1762190645061,0.95151478,107360.0,107350.0,0.13617]
[1762190645258,0.28943,107350.0,107340.0,1.0793904]
[1762190645563,0.460373,107360.0,107350.0,0.27529]
[1762190645969,0.460373,107360.0,107350.0,0.3684617]
[1762190646267,0.460373,107360.0,107350.0,0.3684619]
[1762190646861,0.3826019,107350.0,107340.0,1.0791905]
[1762190647266,0.3826019,107350.0,107340.0,0.98601]
[1762190647474,0.3826019,107350.0,107340.0,1.0791906]
[1762190647865,0.3826019,107350.0,107340.0,0.63609]
[1762190648167,0.3826019,107350.0,107340.0,1.0787506]
[1762190648368,0.3826019,107350.0,107340.0,0.98557]
[1762190648772,0.3826019,107350.0,107340.0,0.7292706]
[1762190649669,0.3826019,107350.0,107340.0,0.98517]
[1762190649870,0.3826019,107350.0,107340.0,0.63609]
[1762190650575,0.3826019,107350.0,107340.0,0.27529]
[1762190650774,0.14679,107320.0,107310.0,1e-07]
[1762190651075,0.809888,107320.0,107310.0,1e-07]
[1762190651274,0.4604154,107320.0,107310.0,0.63609]
[1762190651471,0.4604154,107320.0,107310.0,0.27529]
[1762190651675,0.3826354,107320.0,107310.0,0.27529]
[1762190652569,0.4604154,107320.0,107310.0,0.27529]
[1762190652972,0.59075138,107320.0,107310.0,0.27529]
[1762190653176,0.3826367,107310.0,107300.0,0.62751316]
[1762190653374,0.87377268,107310.0,107300.0,0.00318316]
[1762190653569,0.87385263,107310.0,107300.0,6e-08]
[1762190654084,1.22305263,107310.0,107300.0,6e-08]
[1762190654269,1.27411936,107310.0,107300.0,6e-08]
[1762190654577,0.3699328,107280.0,107270.0,0.62831]
[1762190654776,0.4490328,107280.0,107270.0,0.62831]
[1762190655075,0.3582414,107270.0,107260.0,0.63393649]
[1762190655276,0.48857738,107270.0,107260.0,0.27313649]
[1762190655473,0.84937738,107270.0,107260.0,0.27313649]
[1762190655669,0.84947863,107270.0,107260.0,0.27313649]
[1762190655869,1.06798265,107270.0,107260.0,0.27313649]
[1762190656076,0.49599125,107270.0,107260.0,0.36638659]
[1762190656270,0.00010125,107270.0,107260.0,0.72718659]
[1762190656577,0.22843265,107270.0,107260.0,0.63393649]
[1762190656879,0.35834265,107270.0,107260.0,0.63393649]
[1762190657073,0.48867863,107270.0,107260.0,0.63393649]
[1762190657274,0.35834265,107270.0,107260.0,0.63393649]
[1762190657682,0.70674265,107270.0,107260.0,0.63393649]
[1762190658574,0.70662265,107270.0,107260.0,0.63393649]
[1762190659471,0.61338125,107270.0,107260.0,0.72718659]
[1762190659782,0.70662265,107270.0,107260.0,0.72718659]
[1762190659976,0.35834265,107270.0,107260.0,0.72718659]
[1762190660175,0.26510125,107270.0,107260.0,0.72718659]
[1762190660879,0.35834265,107270.0,107260.0,0.72718659]
[1762190661073,0.26510125,107270.0,107260.0,0.72718659]
[1762190661271,0.13519125,107270.0,107260.0,0.72718659]
[1762190661469,0.00010125,107270.0,107260.0,0.76352659]
[1762190661683,0.00010125,107270.0,107260.0,1.12694257]
[1762190662184,0.0932282,107290.0,107280.0,0.27006]
[1762190662376,0.0932282,107290.0,107280.0,1.0716527]
[1762190662580,0.3582282,107290.0,107280.0,1.12692]
[1762190663376,0.3582282,107290.0,107280.0,0.61762]
[1762190663585,0.3582414,107270.0,107260.0,0.63393649]
[1762190663784,0.3582414,107270.0,107260.0,0.98137649]
[1762190664178,0.48857738,107270.0,107260.0,0.00307649]
[1762190664385,0.84937738,107270.0,107260.0,0.00307649]
[1762190664780,0.3582414,107270.0,107260.0,0.27313649]
[1762190667280,0.48857738,107270.0,107260.0,0.00307649]
[1762190667786,0.3582414,107270.0,107260.0,0.00307649]
[1762190667986,0.3582414,107270.0,107260.0,0.12906649]
[1762190668485,0.3582414,107270.0,107260.0,0.25558649]
[1762190668687,0.3582414,107270.0,107260.0,0.34883659]
[1762190668988,0.3582414,107270.0,107260.0,0.25558649]
[1762190669683,0.3582414,107270.0,107260.0,0.34883669]
[1762190669985,0.3582414,107270.0,107260.0,0.25558649]
[1762190670481,0.265,107270.0,107260.0,0.34883669]
[1762190670683,0.3582415,107270.0,107260.0,0.70963669]
[1762190670877,0.265,107270.0,107260.0,0.70963669]
[1762190671074,0.3582415,107270.0,107260.0,0.61638649]
[1762190672174,0.3582415,107270.0,107260.0,0.25558649]
[1762190675186,0.48857748,107270.0,107260.0,0.00307649]
[1762190675784,0.3582415,107270.0,107260.0,0.25558649]
[1762190675986,0.3582415,107270.0,107260.0,0.61638649]
[1762190676186,0.3582415,107270.0,107260.0,0.25558649]
[1762190678494,0.3582415,107270.0,107260.0,0.34883679]
[1762190678684,0.265,107270.0,107260.0,0.70963679]
[1762190678994,0.265,107270.0,107260.0,0.72856679]
[1762190679389,0.3582415,107270.0,107260.0,0.72856679]
[1762190679582,0.3582415,107270.0,107260.0,0.70963679]
[1762190680097,0.3582415,107270.0,107260.0,0.61638649]
[1762190680286,0.84937748,107270.0,107260.0,0.25558649]
[1762190680491,0.7190415,107270.0,107260.0,0.60002649]
[1762190680790,0.3582415,107270.0,107260.0,0.60002649]